bitfinex-derivatives/quotes_ETHF0:USTF0_20250426
["timestamp","ask_amount","ask_price","bid_price","bid_amount"]
[1745657995794,4.4337,1807.4,1807.3,5.31501]
[1745657998094,3.2078,1807.5,1807.4,1.10609]
[1745657998497,7.3936,1807.5,1807.4,1.10609]
[1745658001005,7.3936,1807.5,1807.3,1.10611]
[1745658001203,4.1588,1807.4,1807.3,1.10611]
[1745658002897,4.1588,1807.4,1807.3,5.49661]
[1745658004606,4.1588,1807.4,1807.3,9.57291]
[1745658009204,4.1588,1807.4,1807.3,1.10611]
[1745658010001,5.26491,1807.4,1807.2,1.10617]
[1745658010199,4.0461,1807.3,1807.1,1.10622]
[1745658010400,8.4484,1807.3,1807.1,1.10622]
[1745658010706,11.6562,1807.3,1807.2,1.10621]
[1745658011006,12.76237,1807.3,1807.1,1.10624]
[1745658011207,4.4023,1807.2,1807.1,1.10624]
[1745658013601,4.0461,1807.3,1807.2,1.10621]
[1745658013805,4.1428,1807.4,1807.3,1.10615]
[1745658017110,8.3767,1807.4,1807.3,1.10615]
[1745658020109,11.5845,1807.4,1807.2,1.10617]
[1745658020308,4.3136,1807.3,1807.2,1.10621]
[1745658023311,4.2339,1807.4,1807.3,1.10615]
[1745658023513,4.1934,1807.4,1807.3,1.10615]
[1745658026809,4.4241,1807.5,1807.4,1.10609]
[1745658027015,8.4068,1807.5,1807.4,1.10609]
[1745658027213,3.2078,1807.9,1807.5,2.76508]
[1745658027407,8.12,1808.0,1807.9,1.10579]
[1745658027714,3.9827,1808.0,1807.9,1.10579]
[1745658027915,4.1373,1808.2,1808.1,1.10566]
[1745658028216,8.3712,1808.2,1808.1,1.10566]
[1745658028919,4.2339,1808.2,1808.1,1.10566]
[1745658029114,4.2339,1808.5,1808.4,1.10548]
[1745658031715,3.9699,1808.7,1808.6,1.10536]
[1745658032014,7.9867,1808.7,1808.6,1.10536]
[1745658032515,3.2078,1808.8,1808.3,10.2342]
[1745658032818,12.167,1809.1,1809.0,1.10511]
[1745658034121,12.167,1809.1,1808.8,4.133]
[1745658034321,12.167,1809.1,1809.0,1.10511]
[1745658034522,12.167,1809.1,1808.9,1.10515]
[1745658034918,12.167,1809.1,1808.7,4.3024]
[1745658035117,12.167,1809.1,1809.0,1.10511]
[1745658037423,12.167,1809.1,1808.8,3.942]
[1745658037619,4.2314,1809.0,1808.9,1.10513]
[1745658041522,4.2314,1809.0,1808.7,1.10526]
[1745658041721,1.10528,1808.8,1808.5,6.22438]
[1745658041916,12.3903,1808.7,1808.6,1.10536]
[1745658045518,12.3903,1808.7,1808.5,6.22439]
[1745658045519,13.49562,1808.7,1808.5,6.22439]
[1745658045720,4.2764,1808.6,1808.5,6.22439]
[1745658046026,1.10546,1808.5,1808.2,1.10559]
[1745658046227,7.5522,1808.4,1808.2,1.10559]
[1745658046522,8.435,1808.3,1808.2,1.10559]
[1745658046725,12.3783,1808.3,1808.2,1.10559]
[1745658046927,12.3783,1808.3,1808.1,47.02463]
[1745658047115,4.3444,1808.2,1808.0,1.10568]
[1745658047321,4.3444,1808.2,1808.1,1.10566]
[1745658053422,4.3444,1808.2,1807.9,50.2592]
[1745658053622,4.3444,1808.2,1808.1,1.10566]
[1745658055025,7.5522,1808.2,1807.9,5.119]
[1745658055233,8.65782,1808.2,1808.0,1.10573]
[1745658055432,4.0371,1808.1,1808.0,1.10573]
[1745658057730,4.0371,1808.1,1808.0,5.38443]
[1745658059630,4.0371,1808.1,1808.0,1.10573]
[1745658064833,8.0339,1808.3,1808.2,1.1056]
[1745658065136,12.3276,1808.3,1808.2,1.1056]
[1745658066233,20.0915,1808.3,1807.9,3.2078]
[1745658066532,1.1059,1807.8,1807.5,1.106]
[1745658066739,16.0751,1807.7,1807.6,1.10597]
[1745658067625,16.0751,1807.7,1807.3,3.2078]
[1745658067935,4.0076,1807.6,1807.5,1.10603]
[1745658068826,5.11359,1807.6,1807.4,1.10606]
[1745658069036,1.10607,1807.5,1807.2,45.92]
[1745658069237,4.0076,1807.4,1807.3,1.10615]
[1745658070129,3.2078,1807.7,1807.3,4.2556]
[1745658070333,5.9731,1807.4,1806.4,3.2078]
[1745658070536,3.2078,1806.9,1806.4,3.2078]
[1745658070735,8.232,1806.8,1806.3,45.896]
[1745658070936,1.10658,1806.6,1806.3,47.00273]
[1745658071136,4.1336,1806.5,1806.3,47.00273]
[1745658071339,4.1336,1806.5,1806.4,1.1067]
[1745658072341,4.1336,1806.5,1806.3,47.00272]
[1745658072641,4.1336,1806.5,1806.4,1.1067]
[1745658073742,7.3414,1806.5,1806.1,7.25196003]
[1745658074044,3.2078,1806.3,1806.1,7.25196003]
[1745658074236,4.2934,1806.2,1806.1,7.25196003]
[1745658074437,4.2934,1806.2,1805.9,18.99080579]
[1745658074635,4.2934,1806.2,1806.0,1.10692]
[1745658074833,4.2934,1806.2,1806.0,1.10693]
[1745658075039,4.2934,1806.2,1806.0,41.90693]
[1745658075443,4.2934,1806.2,1806.0,40.8]
[1745658075641,4.2934,1806.2,1806.0,41.90695]
[1745658075946,4.2934,1806.2,1806.0,41.90693]
[1745658076749,4.31445,1806.5,1806.3,1.10675]
[1745658076931,3.2078,1806.5,1806.1,4.212]
[1745658077132,4.194,1806.4,1806.3,1.10677]
[1745658077942,3.9402,1806.7,1806.6,1.10658]
[1745658078141,8.1342,1806.7,1806.6,1.10658]
[1745658078446,4.194,1806.7,1806.6,1.10658]
[1745658079044,4.194,1806.7,1806.6,5.31858]
[1745658079938,4.194,1806.7,1806.6,4.212]
[1745658080139,4.194,1806.7,1806.5,3.2078]
[1745658080346,5.30054,1806.7,1806.5,3.2078]
[1745658080546,4.194,1806.7,1806.5,4.31443]
[1745658080940,5.30054,1806.7,1806.5,3.2078]
[1745658081339,5.30054,1806.7,1806.5,4.31444]
[1745658081539,4.194,1806.7,1806.5,3.2078]
[1745658081741,1.10658,1806.6,1806.5,3.2078]
[1745658081950,2.76662,1806.5,1805.9,1.10697]
[1745658082142,3.2078,1806.0,1805.9,1.10697]
[1745658082341,3.2078,1806.0,1805.7,41.90711]
[1745658082545,5.28243,1805.9,1805.7,1.10711]
[1745658082742,3.2078,1805.8,1805.6,9.4448]
[1745658082945,3.2078,1805.8,1805.7,1.10713]
[1745658083337,3.2078,1806.2,1805.6,12.2127]
[1745658083649,3.2078,1806.2,1805.7,3.9607]
[1745658083855,1.10677,1806.3,1806.0,1.10693]
[1745658084047,3.2078,1806.2,1805.9,1.10697]
[1745658084345,3.2078,1806.1,1806.0,1.10694]
[1745658084539,3.2078,1806.1,1805.6,5.098]
[1745658084746,3.2078,1805.8,1805.7,1.10713]
[1745658085334,3.2078,1805.8,1805.6,6.20517]
[1745658085546,3.2078,1805.8,1805.6,6.20515]
[1745658085738,6.917,1805.8,1805.7,1.10713]
[1745658085943,6.917,1805.8,1805.6,1.10718]
[1745658086341,6.917,1805.8,1805.5,1.10722]
[1745658086536,3.2078,1805.6,1805.5,1.10722]
[1745658087645,3.2078,1805.6,1805.5,4.65062]
[1745658087845,3.2078,1805.6,1805.5,1.10722]
[1745658090051,3.2078,1805.6,1805.4,41.90728]
[1745658090349,3.2078,1805.6,1805.5,1.10726]
[1745658090944,3.2078,1805.6,1805.4,1.10727]
[1745658091144,4.31502,1805.6,1805.4,1.10727]
[1745658091345,3.2078,1805.6,1805.5,1.10726]
[1745658091752,3.2078,1805.6,1805.4,1.10728]
[1745658092051,4.31501,1805.6,1805.4,1.10728]
[1745658092351,3.2078,1805.6,1805.5,1.10726]
[1745658093149,6.8063,1805.6,1805.5,1.10726]
[1745658093451,3.2078,1805.6,1805.5,1.10726]
[1745658094143,3.5985,1805.8,1805.7,1.10713]
[1745658094144,3.2078,1805.8,1805.7,1.10713]
[1745658094551,6.8063,1806.0,1805.9,1.10701]
[1745658095855,3.2078,1806.2,1806.0,1.10689]
[1745658096046,4.31466,1806.2,1805.9,1.10698]
[1745658096255,3.2078,1806.0,1805.9,1.10701]
[1745658096452,0.42252208,1807.4,1806.7,1.1065]
[1745658096754,3.2078,1807.0,1806.5,3.2078]
[1745658096956,3.8371,1807.1,1806.5,11.07534]
[1745658097151,3.7254,1807.4,1806.9,3.2078]
[1745658097355,3.7843,1807.3,1807.2,1.10621]
[1745658098055,1.10628,1807.1,1806.9,5.101]
[1745658098356,3.2078,1807.3,1806.9,8.3088]
[1745658098558,3.5247,1807.2,1807.1,1.10626]
[1745658098747,3.5247,1807.2,1807.0,4.69631]
[1745658098947,3.5247,1807.2,1807.0,3.59]
[1745658099353,4.63094,1807.2,1806.9,8.3088]
[1745658099553,4.31409,1807.1,1806.7,1.10649]
[1745658099756,3.5247,1807.0,1806.7,1.10649]
[1745658100057,3.5247,1807.0,1806.6,46.98455]
[1745658100058,3.2078,1806.8,1806.6,46.98455]
[1745658100259,3.5247,1806.7,1806.6,46.98455]
[1745658100650,3.5247,1806.7,1806.6,5.078]
[1745658100850,3.5247,1806.7,1806.5,1.10661]
[1745658101052,3.2078,1806.6,1806.1,3.2078]
[1745658101260,3.5386,1806.5,1806.4,1.10669]
[1745658102361,3.5386,1806.5,1806.2,3.4954]
[1745658102560,1.10672,1806.4,1806.1,3.2078]
[1745658102761,3.5386,1806.3,1806.2,1.10682]
[1745658103851,3.5386,1806.3,1806.1,3.2078]
[1745658103852,3.5386,1806.3,1806.1,4.31465]
[1745658104053,3.5386,1806.3,1806.2,1.10683]
[1745658104254,3.5386,1806.3,1806.1,4.31464]
[1745658104453,3.5386,1806.3,1806.2,1.10683]
[1745658106249,6.7372,1806.6,1806.5,1.10664]
[1745658106654,3.7266,1806.8,1806.6,1.10655]
[1745658107355,3.2078,1806.7,1806.5,1.10662]
[1745658107661,3.6766,1806.6,1806.5,1.10662]
[1745658109759,6.7983,1806.9,1806.4,3.5305]
[1745658109959,7.99095,1806.7,1806.4,4.63719]
[1745658110159,1.10659,1806.6,1806.4,3.5305]
[1745658110461,3.7397,1806.5,1806.4,4.6372]
[1745658111858,3.2078,1806.7,1806.4,4.6372]
[1745658112066,6.7983,1806.9,1806.8,1.10646]
[1745658112564,3.2078,1806.9,1806.8,1.10646]
[1745658112762,0.02363161,2510.2,1806.8,1.10646]
[1745658112763,0.27671702,1807.4,1807.3,1.10615]
[1745658112966,0.27671702,1807.4,1807.3,9.39095]
[1745658113164,0.27671702,1807.4,1807.3,55.19095]
[1745658114064,0.27671702,1807.7,1807.6,1.10597]
[1745658114264,3.68301702,1807.7,1807.6,1.10597]
[1745658114857,3.68301702,1807.7,1807.3,50.19095]
[1745658114858,0.27671702,1807.8,1807.3,50.19095]
[1745658115060,3.2078,1807.9,1807.3,50.19095]
[1745658115061,0.27671702,1807.6,1807.3,49.0848]
[1745658115263,3.68301702,1807.5,1807.4,1.10605]
[1745658117064,3.68301702,1807.5,1807.3,9.39092]
[1745658117265,3.68301702,1807.5,1807.4,1.10609]
[1745658117471,3.68301702,1807.5,1807.3,9.39091]
[1745658117769,3.68301702,1807.5,1807.4,1.10609]
[1745658119765,3.68301702,1807.5,1807.3,9.39091]
[1745658120065,3.68301702,1807.5,1807.0,43.56577]
[1745658120066,7.99689702,1807.5,1807.0,44.0078]
[1745658120273,7.99689702,1807.5,1807.3,1.10614]
[1745658120465,1.38283702,1807.4,1807.2,1.10621]
[1745658120769,3.73101702,1807.3,1807.2,1.10621]
[1745658122964,0.27671702,1807.1,1806.9,5.076]
[1745658123169,3.86901702,1807.0,1806.6,11.7986]
[1745658123367,3.86901702,1807.0,1806.9,1.1064]
[1745658123564,4.97538702,1807.0,1806.8,1.10644]
[1745658123976,0.27671702,1806.8,1806.6,5.075]
[1745658124171,3.5923,1806.7,1806.6,6.18158]
[1745658124359,3.86901702,1806.7,1806.6,6.18158]
[1745658129465,0.27671702,1806.7,1806.6,6.18158]
[1745658129665,0.27671702,1806.9,1806.8,1.10646]
[1745658130768,1.38315702,1806.9,1806.6,6.18157]
[1745658130969,0.27671702,1806.7,1806.6,5.075]
[1745658131169,1.38323702,1806.7,1806.6,5.075]
[1745658131365,4.87023702,1806.7,1806.6,5.075]
[1745658132669,1.38329702,1806.6,1806.5,3.2078]
[1745658132869,1.38341702,1806.4,1806.3,5.054]
[1745658133072,0.27671702,1806.3,1806.0,5.054]
[1745658133268,0.27671702,1806.1,1805.7,47.9874]
[1745658133464,7.80167,1806.2,1805.7,47.9874]
[1745658133465,0.27671702,1805.9,1805.8,1.10707]
[1745658134168,3.86491702,1805.9,1805.8,1.10707]
[1745658134368,3.86491702,1805.9,1805.7,50.33109]
[1745658134572,3.86491702,1805.9,1805.8,1.10707]
[1745658134776,3.86491702,1805.9,1805.7,5.054]
[1745658134978,0.27671702,1805.7,1805.6,1.10719]
[1745658135376,3.71471702,1805.7,1805.6,1.10719]
[1745658138277,0.27671702,1805.7,1805.6,4.62919]
[1745658138577,0.27671702,1806.0,1805.9,1.10701]
[1745658138778,0.27671702,1806.0,1805.9,6.16201]
[1745658139083,0.27671702,1806.0,1805.9,46.96201]
[1745658140080,4.31418,1807.0,1805.9,54.0628]
[1745658140282,3.5803,1806.8,1806.7,1.10648]
[1745658141678,3.5803,1806.8,1806.4,5.055]
[1745658141883,7.89461,1806.8,1806.4,6.16168]
[1745658142984,7.89461,1806.8,1806.5,1.10663]
[1745658143284,6.7881,1806.8,1806.5,1.10663]
[1745658143784,3.5803,1806.8,1806.7,1.10652]
[1745658144584,3.5803,1806.8,1806.6,3.5063]
[1745658144585,3.5803,1806.8,1806.5,3.2078]
[1745658144785,1.10652,1806.7,1806.5,3.2078]
[1745658144986,3.6307,1806.6,1806.5,4.31444]
[1745658145285,3.6307,1806.6,1806.4,5.055]
[1745658145478,11.6104,1806.6,1806.4,6.16169]
[1745658145783,10.5038,1806.6,1806.4,5.055]
[1745658145980,10.5038,1806.6,1806.5,1.10664]
[1745658147091,11.61039,1806.6,1806.4,6.16166]
[1745658147587,3.6307,1806.6,1806.5,1.10664]
[1745658148481,11.8385,1806.6,1806.1,1.10689]
[1745658148674,3.2078,1806.4,1806.1,1.10685]
[1745658148890,3.514,1806.3,1806.2,1.10683]
[1745658149188,4.62077,1806.3,1806.1,1.10686]
[1745658149580,3.514,1806.3,1806.2,1.10683]
[1745658149781,4.62077,1806.3,1806.0,3.3985]
[1745658150183,4.62077,1806.3,1806.1,1.10687]
[1745658150577,4.62077,1806.3,1806.0,4.50541]
[1745658151090,3.514,1806.3,1806.1,1.10686]
[1745658151287,4.62077,1806.3,1806.1,1.10686]
[1745658151481,3.514,1806.3,1806.2,1.10683]
[1745658152081,3.2078,1806.4,1806.3,1.10677]
[1745658152381,4.31451,1806.4,1806.2,1.10677]
[1745658152583,3.3341,1806.3,1806.2,1.10677]
[1745658152883,3.2078,1806.4,1806.3,1.10677]
[1745658153485,3.2078,1806.4,1806.2,4.5353]
[1745658153986,6.5419,1806.4,1806.2,4.5353]
[1745658154288,11.5419,1806.4,1805.2,3.2078]
[1745658154490,3.2078,1805.7,1805.1,9.3465]
[1745658154786,4.44133,1805.6,1805.2,1.10738]
[1745658154988,4.44133,1805.6,1805.3,3.4285]
[1745658155186,1.10726,1805.5,1805.3,3.4285]
[1745658155392,3.3341,1805.4,1805.3,3.4285]
[1745658155588,4.44143,1805.4,1805.1,52.88047]
[1745658155792,4.44143,1805.4,1805.1,52.88048]
[1745658155988,1.10738,1805.3,1805.1,51.773]
[1745658156298,3.4892,1805.2,1805.1,45.855]
[1745658156887,3.4892,1805.2,1805.1,46.9625]
[1745658157191,1.10732,1805.4,1805.1,46.98738241]
[1745658157391,4.59661,1805.3,1805.1,45.87990241]
[1745658158297,4.59661,1805.3,1805.2,0.03823291]
[1745658158699,3.4892,1805.3,1805.2,0.03823291]
[1745658159295,3.4892,1805.3,1805.2,0.0552072]
[1745658159796,4.59658,1805.3,1805.2,0.0552072]
[1745658160203,4.59658,1805.3,1805.1,5.055]
[1745658160405,4.59658,1805.3,1805.2,0.07218149]
[1745658161211,3.4892,1805.3,1805.2,1.17962149]
[1745658162605,3.4892,1805.3,1805.2,4.81562149]
[1745658162807,3.4892,1805.3,1805.2,1.17962149]
[1745658163203,3.4892,1805.3,1805.2,0.07218149]
[1745658163404,3.4892,1805.3,1805.2,1.17962149]
[1745658163905,4.59658,1805.3,1805.2,0.07218149]
[1745658166208,7.80438,1805.3,1805.2,0.07218149]
[1745658171211,13.11238,1805.3,1805.2,0.07218149]
[1745658171413,1.10761,1805.0,1804.8,6.14363]
[1745658171617,3.4606,1804.9,1804.8,6.14363]
[1745658172710,1.1079,1804.5,1804.1,3.2078]
[1745658172911,3.2078,1804.7,1804.2,3.2078]
[1745658173111,1.10789,1804.5,1804.3,3.5523]
[1745658173410,6.6684,1804.7,1804.3,4.66025]
[1745658173609,1.10791,1804.5,1804.3,4.66025]
[1745658173808,3.5037,1804.4,1804.3,4.66025]
[1745658174715,3.5843,1804.6,1804.4,1.1079]
[1745658174916,3.5037,1804.5,1804.4,1.1079]
[1745658175216,4.31559,1804.7,1804.3,3.5523]
[1745658175217,3.2078,1804.7,1804.3,3.5523]
[1745658175420,3.2078,1804.7,1804.6,1.10781]
[1745658176318,3.2078,1804.7,1804.5,3.4424]
[1745658176613,3.2078,1804.7,1804.6,1.10781]
[1745658177712,3.2078,1804.7,1804.4,7.1166]
[1745658178013,3.4123,1804.6,1804.4,8.22451]
[1745658178209,4.52015,1804.6,1804.3,6.14597]
[1745658178415,6.7669,1804.6,1804.3,6.14597]
[1745658178617,7.87475,1804.6,1804.3,6.14597]
[1745658178806,7.87475,1804.6,1804.4,1.10792]
[1745658179011,7.87475,1804.6,1804.4,4.50092]
[1745658179012,6.7669,1804.6,1804.4,4.50092]
[1745658179214,6.7669,1804.6,1804.5,1.10787]
[1745658180414,3.2078,1804.9,1804.5,5.0]
[1745658180607,3.2078,1804.9,1804.7,1.10773]
[1745658180812,3.3899,1804.8,1804.7,1.10773]
[1745658182211,3.3899,1804.8,1804.7,4.45523]
[1745658184216,3.3899,1804.8,1804.7,1.10773]
[1745658184422,3.3899,1804.8,1804.6,1.10776]
[1745658184618,3.3899,1804.8,1804.5,11.8386]
[1745658184919,3.3899,1804.8,1804.7,1.10775]
[1745658185125,6.6521,1805.1,1805.0,1.10756]
[1745658185422,3.2078,1805.1,1805.0,1.10756]
[1745658186124,3.3256,1805.2,1805.1,1.1075]
[1745658186510,6.9478,1805.4,1805.3,1.10738]
[1745658186710,6.9169,1805.4,1805.3,1.10738]
[1745658186915,3.2078,1805.5,1805.4,1.10732]
[1745658187621,3.2078,1805.5,1805.3,1.10735]
[1745658187822,3.5447,1805.4,1805.3,1.10735]
[1745658188225,3.5447,1805.4,1805.3,40.8]
[1745658188418,3.5447,1805.4,1805.3,41.90738]
[1745658189326,3.5447,1805.4,1805.3,40.8]
[1745658189719,4.65202,1805.4,1805.3,40.8]
[1745658190020,8.14542,1805.4,1805.2,1.1074]
[1745658190222,3.358,1805.3,1805.2,1.1074]
[1745658190528,1.10744,1805.2,1805.1,0.00384146]
[1745658190829,10.97583,1805.3,1805.1,0.00384146]
[1745658191026,3.3026,1805.2,1805.1,1.11134146]
[1745658191929,3.358,1805.3,1805.2,1.10744]
[1745658192124,3.358,1805.3,1805.2,4.62504]
[1745658192331,6.9247,1805.4,1805.3,1.10738]
[1745658192525,3.4313,1805.4,1805.3,1.10738]
[1745658192825,3.2078,1805.5,1805.4,1.10732]
[1745658193632,3.4313,1805.7,1805.6,1.10719]
[1745658194819,1.10744,1805.2,1805.1,0.00384146]
[1745658195427,11.43344,1805.2,1805.1,0.00384146]
[1745658195931,10.326,1805.2,1805.1,0.00384146]
[1745658196127,11.43344,1805.2,1805.1,0.00384146]
[1745658198525,10.326,1805.2,1805.1,0.00384146]
[1745658199028,11.43344,1805.2,1805.1,0.00384146]
[1745658199229,16.82827557,1805.2,1805.1,0.00384146]
[1745658199433,16.74144,1805.2,1805.1,0.00384146]
[1745658199830,15.634,1805.2,1805.1,0.00384146]
[1745658200030,15.634,1805.2,1805.1,1.11134146]
[1745658200235,6.7551,1805.2,1805.1,1.11134146]
[1745658201127,6.7551,1805.2,1805.1,0.00384146]
[1745658201736,7.86254,1805.2,1805.1,0.00384146]
[1745658202031,2.76876,1805.1,1804.5,9.1258]
[1745658202234,1.10778,1804.7,1804.5,3.2078]
[1745658202428,3.2602,1804.6,1804.5,4.31567]
[1745658202628,3.2602,1804.6,1804.5,3.2078]
[1745658202930,3.2602,1804.6,1804.1,3.2078]
[1745658203135,1.10787,1804.5,1804.1,4.31586]
[1745658203432,3.2602,1804.4,1804.3,1.10799]
[1745658203634,3.2602,1804.4,1804.2,3.2078]
[1745658203830,4.36815,1804.4,1804.1,41.90809]
[1745658204036,4.36815,1804.4,1803.9,8.4442]
[1745658204037,6.468,1804.4,1803.9,8.4442]
[1745658204230,3.2078,1804.1,1803.8,3.2078]
[1745658204537,3.2961,1804.0,1803.9,1.10824]
[1745658204732,3.2078,1804.3,1803.9,3.3097]
[1745658204929,3.2961,1804.2,1804.1,1.1081]
[1745658205334,3.2961,1804.2,1804.0,4.37594]
[1745658205624,3.2768,1804.7,1804.1,3.2078]
[1745658205829,3.2961,1804.6,1804.4,4.31571]
[1745658206029,3.2961,1804.6,1804.5,1.10787]
[1745658207126,3.2961,1804.6,1804.4,1.10791]
[1745658207531,3.2961,1804.6,1804.3,9.33475]
[1745658207735,3.2961,1804.6,1804.4,1.10793]
[1745658209240,3.2961,1804.6,1804.5,1.10787]
[1745658209439,3.2961,1804.6,1804.4,1.10791]
[1745658209939,3.2961,1804.6,1804.5,1.10787]
[1745658211437,3.2961,1804.6,1804.3,8.2268]
[1745658211841,3.2961,1804.6,1804.4,1.10792]
[1745658212034,4.40392,1804.6,1804.3,8.2268]
[1745658212236,3.2961,1804.6,1804.4,1.1079]
[1745658212436,3.5709,1804.5,1804.4,1.1079]
[1745658212945,3.5709,1804.5,1804.3,9.33475]
[1745658213344,3.5709,1804.5,1804.4,1.10793]
[1745658213542,3.5709,1804.5,1804.3,9.33475]
[1745658213742,3.5709,1804.5,1804.4,1.10793]
[1745658214241,6.7911,1804.7,1804.6,1.10781]
[1745658214542,3.2078,1805.1,1805.0,1.1075]
[1745658214742,6.5371,1805.1,1805.0,1.1075]
[1745658215345,3.2078,1805.1,1805.0,1.1075]
[1745658217441,3.2078,1805.1,1804.9,1.10757]
[1745658217642,3.314,1805.0,1804.9,1.10757]
[1745658218035,6.6678,1805.0,1804.9,41.90757]
[1745658218748,10.2643,1805.0,1804.9,41.90757]
[1745658218950,10.2643,1805.0,1804.9,1.10757]
[1745658219248,11.37189,1805.0,1804.7,6.12671]
[1745658219442,11.37189,1805.0,1804.7,1.10771]
[1745658219443,3.364,1804.9,1804.7,1.10771]
[1745658219650,3.364,1804.9,1804.5,40.8]
[1745658220351,3.364,1804.9,1804.8,1.10769]
[1745658220850,12.67946,1804.9,1804.6,1.10777]
[1745658221044,6.5718,1804.9,1804.6,1.10777]
[1745658221348,3.364,1804.8,1804.7,1.10774]
[1745658223938,6.9503,1805.0,1804.9,1.10762]
[1745658224143,6.8594,1805.0,1804.9,1.10762]
[1745658224653,3.5056,1805.0,1804.9,1.10762]
[1745658226353,3.2078,1805.1,1805.0,1.10756]
[1745658226546,6.7083,1805.1,1805.0,1.10756]
[1745658227248,1.10779,1804.7,1804.4,49.0078]
[1745658227454,3.5005,1804.6,1804.5,1.10787]
[1745658228745,3.5005,1804.6,1804.5,4.70927]
[1745658229049,6.587,1804.9,1804.7,1.10769]
[1745658229243,3.5553,1804.8,1804.7,1.10769]
[1745658229654,3.5553,1804.8,1804.6,4.31557]
[1745658230153,3.5553,1804.8,1804.6,1.10777]
[1745658230753,3.5553,1804.8,1804.7,1.10775]
[1745658231348,3.5553,1804.8,1804.6,1.10777]
[1745658231958,3.5553,1804.8,1804.7,1.10775]
[1745658233751,3.5553,1804.8,1804.5,6.6998]
[1745658234250,3.5553,1804.8,1804.7,1.10775]
[1745658235049,3.5553,1804.8,1804.6,1.10777]
[1745658235256,4.66299,1804.8,1804.5,3.2078]
[1745658235460,4.66299,1804.8,1804.6,1.10777]
[1745658235659,3.5431,1804.7,1804.6,1.10777]
[1745658236256,14.52031,1804.7,1803.8,68.16642]
[1745658236447,3.2078,1804.5,1803.9,5.0]
[1745658236650,4.64408,1804.4,1804.2,1.10804]
[1745658236850,8.18718,1804.4,1804.2,1.10804]
[1745658237056,3.5431,1804.3,1804.2,1.10804]
[1745658237949,1.10805,1804.2,1804.0,40.8]
[1745658238154,3.3538,1804.1,1804.0,41.90816]
[1745658238359,3.3538,1804.1,1804.0,1.10816]
[1745658240152,3.3538,1804.1,1803.9,50.4798]
[1745658240457,3.3538,1804.1,1803.9,50.47979]
[1745658241255,3.3538,1804.1,1804.0,1.10818]
[1745658241555,3.3538,1804.1,1804.0,4.44748]
[1745658242552,3.3538,1804.1,1803.9,49.1898]
[1745658242553,3.3538,1804.1,1803.9,6.1082]
[1745658242757,3.3538,1804.1,1804.0,1.10818]
[1745658242957,3.3538,1804.1,1803.9,6.1082]
[1745658243161,3.3538,1804.1,1803.9,46.9082]
[1745658243554,4.46192,1804.1,1803.9,46.9082]
[1745658243761,3.3538,1804.1,1803.9,46.9082]
[1745658243966,3.3996,1804.0,1803.9,46.9082]
[1745658244165,3.3996,1804.0,1803.9,50.3844]
[1745658246961,3.3996,1804.0,1803.9,45.3844]
[1745658247160,3.3996,1804.0,1803.6,5.001]
[1745658247463,6.5638,1803.9,1803.5,4.51004]
[1745658247663,3.3665,1803.8,1803.5,48.64894]
[1745658247859,6.6469,1803.8,1803.5,48.64894]
[1745658248160,6.6469,1803.8,1803.7,1.10836]
[1745658248357,6.6469,1803.8,1803.2,5.918]
[1745658248358,3.2804,1803.8,1803.2,5.918]
[1745658248561,4.31621,1803.7,1803.2,7.02667]
[1745658248863,3.2078,1803.7,1803.2,5.918]
[1745658249054,3.2078,1803.7,1803.3,3.3389]
[1745658249255,3.356,1803.9,1803.8,1.1083]
[1745658249460,3.2078,1804.3,1804.2,1.108]
[1745658250154,3.2078,1804.3,1803.7,5.001]
[1745658250356,3.2078,1804.3,1803.9,3.3731]
[1745658250965,3.2078,1805.1,1804.4,1.10793]
[1745658251155,6.6743,1805.1,1805.0,1.10756]
[1745658251462,1.10771,1804.8,1804.4,1.1079]
[1745658251663,10.2472,1804.7,1804.4,1.10791]
[1745658251865,10.2472,1804.7,1804.2,3.2078]
[1745658252056,0.08679704,1804.6,1804.2,3.2078]
[1745658252360,1.10804,1804.3,1803.9,1.10822]
[1745658252563,7.0394,1804.2,1804.0,1.10817]
[1745658252964,7.0394,1804.2,1804.1,1.10812]
[1745658253263,10.2472,1804.2,1804.1,1.10812]
[1745658253865,10.2472,1804.2,1804.0,1.10815]
[1745658254761,11.35527,1804.2,1803.9,4.4775]
[1745658255163,3.2078,1804.0,1803.8,40.8]
[1745658255366,1.10828,1803.9,1803.5,1.10845]
[1745658255558,3.2078,1804.0,1803.4,4.31632]
[1745658255764,3.2078,1803.8,1803.4,4.31632]
[1745658256260,3.2078,1803.8,1803.3,3.3604]
[1745658256460,3.2078,1803.6,1803.2,6.09165]
[1745658256658,3.2078,1803.6,1803.4,1.10851]
[1745658256966,3.2078,1803.6,1803.1,1.1087]
[1745658257171,3.2078,1803.3,1803.2,1.10867]
[1745658258056,3.2078,1803.6,1803.2,5.0]
[1745658258266,3.2078,1803.8,1803.5,1.10845]
[1745658258458,3.2078,1803.8,1803.6,3.3604]
[1745658258766,3.2078,1803.8,1803.7,1.10836]
[1745658258968,3.2078,1803.8,1803.6,4.46878]
[1745658259366,3.2078,1803.8,1803.7,3.2552]
[1745658260270,4.3161,1803.8,1803.7,3.2552]
[1745658260564,3.2078,1802.6,1802.1,7.91960949]
[1745658260763,1.10935,1802.1,1802.0,19.89367228]
[1745658260960,1.10935,1802.1,1802.0,0.19165746]
[1745658261155,1.10941,1802.0,1801.9,55.58239349]